Workbook

Sheet Tabelle1
A1: Saisonalflow
C2: Jan | D2: Feb | E2: Mrz | F2: Apr | G2: Mai | H2: Jun | I2: Jul | J2: Aug | K2: Sep | L2: Okt | M2: Nov | N2: Dez | O2: Gesamt
A3: Neuwagen | B3: 2016 | C3: 0.0787 | D3: 0.0577 | E3: 0.0693 | F3: 0.0811 | G3: 0.0915 | H3: 0.1221 | I3: 0.0784 | J3: 0.0721 | K3: 0.0814 | L3: 0.1001 | M3: 0.0709 | N3: 0.0967 | O3: =SUM(C3:N3) -> 1
B4: 2017 | C4: 0.0801 | D4: 0.0722 | E4: 0.098 | F4: 0.0546 | G4: 0.118 | H4: 0.0831 | I4: 0.0573 | J4: 0.0822 | K4: 0.0757 | L4: 0.0914 | M4: 0.1134 | N4: 0.074 | O4: =SUM(C4:N4) -> 1
B5: 2018 | C5: 0.072522812 | D5: 0.08492481413 | E5: 0.1008417113 | F5: 0.06866976994 | G5: 0.08212931537 | H5: 0.1057828727 | I5: 0.07562950026 | J5: 0.08008474978 | K5: 0.06702603887 | L5: 0.09572174899 | M5: 0.0922 | N5: 0.0745 | O5: 1.000033333
C6: =+(+C5+C3+C4)/3 -> 0.077107604 | D6: =+(+D5+D3+D4)/3 -> 0.07160827138 | E6: 0.08938057042 | F6: 0.06812325665 | G6: 0.09720977179 | H6: 0.1036609576 | I6: 0.07044316675 | J6: 0.07812824993 | K6: 0.07470867962 | L6: 0.095740583 | M6: =+(+M5+M3+M4)/3 -> 0.09216666667 | N6: =+(+N5+N3+N4)/3 -> 0.08173333333 | O6: =SUM(C6:N6) -> 1.000011111
A8: Gebrauchtwagen | B8: 2016 | C8: 0.0928 | D8: 0.0652 | E8: 0.1515 | F8: 0.0899 | G8: 0.1235 | H8: 0.0695 | I8: 0.0819 | J8: 0.1039 | K8: 0.0331 | L8: 0.067 | M8: 0.0478 | N8: 0.0739 | O8: 1
B9: 2017 | C9: 0.0615 | D9: 0.0832 | E9: 0.1837 | F9: 0.0731 | G9: 0.0659 | H9: 0.092 | I9: 0.0862 | J9: 0.0991 | K9: 0.0499 | L9: 0.0665 | M9: 0.0721 | N9: 0.0668 | O9: 1
B10: 2018 | C10: 0.08693720646 | D10: 0.07026912893 | E10: 0.0874178236 | F10: 0.08102585343 | G10: 0.1109847203 | H10: 0.09977714077 | I10: 0.09253320809 | J10: 0.06395369654 | K10: 0.05695581808 | L10: 0.08347873713 | M10: 0.0793 | N10: 0.0874 | O10: 1.000033333
C11: =+(+C10+C8+C9)/3 -> 0.08041240215 | D11: =+(+D10+D8+D9)/3 -> 0.07288970964 | E11: 0.1408726079 | F11: 0.08134195114 | G11: 0.1001282401 | H11: 0.08709238026 | I11: 0.08687773603 | J11: 0.08898456551 | K11: 0.04665193936 | L11: 0.07232624571 | M11: 0.0664 | N11: 0.07603333333 | O11: =SUM(C11:N11) -> 1.000011111
A13: Mechanik | B13: 2016 | C13: 0.0574 | D13: 0.0637 | E13: 0.0784 | F13: 0.1231 | G13: 0.0921 | H13: 0.0944 | I13: 0.0674 | J13: 0.0722 | K13: 0.0684 | L13: 0.1054 | M13: 0.1084 | N13: 0.0691 | O13: 1
B14: 2017 | C14: 0.0606 | D14: 0.0665 | E14: 0.0992 | F14: 0.0998 | G14: 0.0916 | H14: 0.0827 | I14: 0.0759 | J14: 0.0854 | K14: 0.0734 | L14: 0.0918 | M14: 0.1074 | N14: 0.0657 | O14: =SUM(C14:N14) -> 1
B15: 2018 | C15: 0.05681544856 | D15: 0.05217357039 | E15: 0.07918474359 | F15: 0.1093570184 | G15: 0.08763070724 | H15: 0.0964535936 | I15: 0.09114959451 | J15: 0.0793600482 | K15: 0.07245770191 | L15: 0.1087509069 | M15: 0.108 | N15: 0.0587 | O15: =SUM(C15:N15) -> 1.000033333
C16: =+(+C15+C13+C14)/3 -> 0.05827181619 | D16: =+(+D15+D13+D14)/3 -> 0.06079119013 | E16: 0.08559491453 | F16: 0.1107523395 | G16: 0.09044356908 | H16: 0.0911845312 | I16: 0.07814986484 | J16: 0.07898668273 | K16: 0.07141923397 | L16: 0.1019836356 | M16: 0.1079333333 | N16: 0.0645 | O16: =SUM(C16:N16) -> 1.000011111
A18: Karosserie | B18: 2016 | C18: 0.0907 | D18: 0.0545 | E18: 0.0765 | F18: 0.0644 | G18: 0.0682 | H18: 0.0766 | I18: 0.0862 | J18: 0.1105 | K18: 0.0901 | L18: 0.0991 | M18: 0.0708 | N18: 0.1124 | O18: 1
B19: 2017 | C19: 0.0872 | D19: 0.0776 | E19: 0.0797 | F19: 0.0773 | G19: 0.085 | H19: 0.0556 | I19: 0.0765 | J19: 0.1162 | K19: 0.1355 | L19: 0.0807 | M19: 0.0658 | N19: 0.0629 | O19: 1
B20: 2018 | C20: 0.1129537113 | D20: 0.08200795436 | E20: 0.08804523145 | F20: 0.09694112755 | G20: 0.06491588699 | H20: 0.07490328369 | I20: 0.07791220637 | J20: 0.05606462543 | K20: 0.08881114104 | L20: 0.09077816516 | M20: 0.075 | N20: 0.0917 | O20: 1.000033333
C21: =+(+C20+C18+C19)/3 -> 0.0969512371 | D21: =+(D18+D19)/2 -> 0.06605 | E21: =+(E18+E19)/2 -> 0.0781 | F21: =+(F18+F19)/2 -> 0.07085 | G21: =+(G18+G19)/2 -> 0.0766 | H21: =+(H18+H19)/2 -> 0.0661 | I21: =+(I18+I19)/2 -> 0.08135 | J21: =+(J18+J19)/2 -> 0.11335 | K21: =+(K18+K19)/2 -> 0.1128 | L21: =+(L18+L19)/2 -> 0.0899 | M21: =+(M18+M19)/2 -> 0.0683 | N21: =+(N18+N19)/2 -> 0.08765 | O21: =SUM(C21:N21) -> 1.008001237
A23: Lack | B23: 2016 | C23: 0.074 | D23: 0.0664 | E23: 0.0891 | F23: 0.0746 | G23: 0.0702 | H23: 0.0966 | I23: 0.0957 | J23: 0.0903 | K23: 0.0851 | L23: 0.0869 | M23: 0.0814 | N23: 0.0897 | O23: 1
B24: 2017 | C24: 0.079 | D24: 0.0805 | E24: 0.0818 | F24: 0.0747 | G24: 0.0851 | H24: 0.0763 | I24: 0.0739 | J24: 0.0979 | K24: 0.0968 | L24: 0.0661 | M24: 0.0888 | N24: 0.0991 | O24: 1
B25: 2018 | C25: 0.09173382234 | D25: 0.08666686967 | E25: 0.07567314972 | F25: 0.08691067902 | G25: 0.0791261571 | H25: 0.08745588178 | I25: 0.09070547777 | J25: 0.07776073142 | K25: 0.07582992522 | L25: 0.08147063929 | M25: 0.0854 | N25: 0.0813 | O25: 1.000033333
C26: =+(+C25+C23+C24)/3 -> 0.08157794078 | D26: =+(D23+D24)/2 -> 0.07345 | E26: =+(E23+E24)/2 -> 0.08545 | F26: =+(F23+F24)/2 -> 0.07465 | G26: =+(G23+G24)/2 -> 0.07765 | H26: =+(H23+H24)/2 -> 0.08645 | I26: =+(I23+I24)/2 -> 0.0848 | J26: =+(J23+J24)/2 -> 0.0941 | K26: =+(K23+K24)/2 -> 0.09095 | L26: =+(L23+L24)/2 -> 0.0765 | M26: =+(M23+M24)/2 -> 0.0851 | N26: =+(N23+N24)/2 -> 0.0944 | O26: =SUM(C26:N26) -> 1.005077941
A28: TUZ | B28: 2016 | C28: 0.0701 | D28: 0.0606 | E28: 0.0874 | F28: 0.0947 | G28: 0.0814 | H28: 0.085 | I28: 0.0698 | J28: 0.0804 | K28: 0.0686 | L28: 0.0966 | M28: 0.113 | N28: 0.0924 | O28: 1
B29: 2017 | C29: 0.0719 | D29: 0.0727 | E29: 0.0886 | F29: 0.0752 | G29: 0.0866 | H29: 0.0695 | I29: 0.078 | J29: 0.0894 | K29: 0.0789 | L29: 0.0872 | M29: 0.1134 | N29: 0.0886 | O29: 1
B30: 2018 | C30: 0.07598847235 | D30: 0.07534536878 | E30: 0.08471562319 | F30: 0.09260548278 | G30: 0.0765840748 | H30: 0.08316154384 | I30: 0.079291182 | J30: 0.06952110904 | K30: 0.08269588972 | L30: 0.1034 | M30: 0.109 | N30: 0.0677 | O30: 1.000008746
C31: =+(+C30+C28+C29)/3 -> 0.07266282412 | D31: =+(+D30+D28+D29)/3 -> 0.06954845626 | E31: 0.08690520773 | F31: 0.08750182759 | G31: 0.08152802493 | H31: 0.07922051461 | I31: 0.07569706067 | J31: 0.07977370301 | K31: 0.07673196324 | L31: 0.09573333333 | M31: 0.1118 | N31: 0.0829 | O31: =SUM(C31:N31) -> 1.000002915
A33: Mietwagen | B33: 2016 | C33: 0.0766 | D33: 0.1063 | E33: 0.0551 | F33: 0.0687 | G33: 0.075 | H33: 0.1402 | I33: 0.0672 | J33: 0.0761 | K33: 0.0796 | L33: 0.0579 | M33: 0.0924 | N33: 0.1049 | O33: 1
B34: 2017 | C34: 0.0805 | D34: 0.0443 | E34: 0.1437 | F34: 0.0671 | G34: 0.1018 | H34: 0.0458 | I34: 0.0922 | J34: 0.0826 | K34: 0.0704 | L34: 0.0877 | M34: 0.0858 | N34: 0.0981 | O34: 1
B35: 2018 | C35: 0.0805 | D35: 0.0443 | E35: 0.1437 | F35: 0.0671 | G35: 0.1018 | H35: 0.0458 | I35: 0.0922 | J35: 0.0826 | K35: 0.0704 | L35: 0.0877 | M35: 0.0858 | N35: 0.0981
C36: =+(+C35+C33+C34)/3 -> 0.0792 | D36: =+(+D35+D33+D34)/3 -> 0.06496666667 | E36: 0.1141666667 | F36: 0.06763333333 | G36: 0.09286666667 | H36: 0.07726666667 | I36: 0.08386666667 | J36: 0.08043333333 | K36: 0.07346666667 | L36: 0.07776666667 | M36: 0.088 | N36: 0.1003666667 | O36: =SUM(C36:N36) -> 1
A38: Gesamt | B38: 2016 | C38: 0.0803 | D38: 0.0613 | E38: 0.0972 | F38: 0.0876 | G38: 0.0981 | H38: 0.098 | I38: 0.0782 | J38: 0.0841 | K38: 0.065 | L38: 0.0894 | M38: 0.073 | N38: 0.0878 | O38: 1
B39: 2017 | C39: 0.0731 | D39: 0.0749 | E39: 0.1175 | F39: 0.0667 | G39: 0.0965 | H39: 0.0821 | I39: 0.0701 | J39: 0.0892 | K39: 0.0719 | L39: 0.0833 | M39: 0.1002 | N39: 0.0745 | O39: 1
B40: 2018
C41: =+(+C40+C38+C39)/3 -> 0.05113333333 | D41: =+(D38+D39)/2 -> 0.0681 | E41: 0.10735 | F41: 0.07715 | G41: 0.0973 | H41: 0.09005 | I41: 0.07415 | J41: 0.08665 | K41: 0.06845 | L41: 0.08635 | M41: 0.0866 | N41: 0.08115 | O41: 0.9744333333

Sheet Tabelle2

Sheet Tabelle3
